bitfinex-derivatives/quotes_BNBF0:USTF0_20230831
["timestamp","ask_amount","ask_price","bid_price","bid_amount"]
[1693501349110,0.07177758,217.08,216.64,0.27463932]
[1693501349304,0.07177758,217.08,216.65,0.20012033]
[1693501349504,0.07177758,217.09,216.65,0.27463932]
[1693501349707,0.07177758,217.09,216.66,0.20012033]
[1693501350208,0.07177758,217.08,216.66,0.20012033]
[1693501350515,0.07177758,217.08,216.65,0.20012033]
[1693501350810,0.07177758,217.1,216.66,0.27463932]
[1693501351013,0.07177758,217.15,216.7,0.07451899]
[1693501351204,0.07177758,217.15,216.71,0.20012033]
[1693501351407,0.07177758,217.2,216.76,0.07451899]
[1693501351607,0.07177758,217.2,216.77,0.20012033]
[1693501352317,0.07177758,217.21,216.77,0.20012033]
[1693501352514,0.07177758,217.21,216.76,0.27463932]
[1693501352713,0.07177758,217.21,216.77,0.20012033]
[1693501353212,0.07177758,217.23,216.77,0.20012033]
[1693501353410,0.07177758,217.23,216.75,0.20012033]
[1693501353411,0.84664314,217.22,216.75,0.20012033]
[1693501353912,0.91842072,217.22,216.75,0.20012033]
[1693501354114,0.07177758,217.22,216.75,0.20012033]
[1693501354313,0.07177758,217.18,216.75,0.20012033]
[1693501354516,0.07177758,217.18,216.71,0.20012033]
[1693501354814,0.07177758,217.18,216.7,0.20012033]
[1693501355015,0.07177758,217.18,216.72,0.20012033]
[1693501355209,0.07177758,217.18,216.73,0.20012033]
[1693501355412,0.07177758,217.19,216.7,0.20012033]
[1693501355614,0.84684585,217.18,216.7,0.20012033]
[1693501355913,0.07177758,217.18,216.7,0.20012033]
[1693501357916,0.07177758,217.19,216.7,0.20012033]
[1693501358712,0.91861665,217.18,216.7,0.20012033]
[1693501359018,0.07177758,217.18,216.7,0.20012033]
[1693501359519,0.07177758,217.17,216.69,0.20012033]
[1693501359818,0.07177758,217.17,216.7,0.20012033]
[1693501360018,0.07177758,217.18,216.69,0.20012033]
[1693501360219,0.07177758,217.18,216.69,0.27463932]
[1693501360419,0.07177758,217.18,216.7,0.20012033]
[1693501360815,0.07177758,217.18,216.69,0.20012033]
[1693501361016,0.07177758,217.18,216.71,0.20012033]
[1693501361216,0.07177758,217.18,216.72,0.20012033]
[1693501361519,0.07177758,217.18,216.69,0.20012033]
[1693501361715,0.07177758,217.18,216.73,0.20012033]
[1693501362019,0.07177758,217.19,216.74,0.20012033]
[1693501362219,0.07177758,217.19,216.7,0.20012033]
[1693501362419,0.07177758,217.24,216.74,0.07451899]
[1693501362621,0.07177758,217.22,216.76,0.07451899]
[1693501362824,0.07177758,217.23,216.76,0.07451899]
[1693501363020,0.07177758,217.24,216.77,0.20012033]
[1693501363419,0.07177758,217.24,216.76,0.27463932]
[1693501363615,0.07177758,217.25,216.77,0.27463932]
[1693501363819,0.07177758,217.26,216.78,0.27463932]
[1693501364019,0.14355517,217.28,216.78,0.27463932]
[1693501364020,0.07177758,217.25,216.79,0.20012033]
[1693501364618,0.9570345,217.33,216.79,0.20012033]
[1693501364619,0.07177758,217.26,216.79,0.27463932]
[1693501364816,0.47851725,217.31,216.84,0.07451899]
[1693501365018,0.07177758,217.35,216.85,0.07451899]
[1693501365224,0.07177758,217.36,216.85,0.20012033]
[1693501365417,0.84619868,217.34,216.81,0.27463932]
[1693501365620,0.84619868,217.35,216.86,0.20012033]
[1693501365823,0.84619868,217.33,216.82,0.20012033]
[1693501366024,0.07177758,217.35,216.83,0.20012033]
[1693501366223,0.84623281,217.34,216.82,0.20012033]
[1693501366923,0.84623281,217.34,216.82,0.27463932]
[1693501367123,0.84623281,217.34,216.83,0.20012033]
[1693501367626,0.84623281,217.37,216.8,0.20012033]
[1693501367819,0.84623281,217.36,216.81,0.20012033]
[1693501368019,0.91801039,217.37,216.8,0.20012033]
[1693501368323,0.84623281,217.36,216.8,0.20012033]
[1693501368518,0.84623281,217.36,216.79,0.20012033]
[1693501369225,0.84623281,217.35,216.79,0.20012033]
[1693501369426,0.84623281,217.39,216.79,0.20012033]
[1693501369622,0.84623281,217.39,216.8,0.20012033]
[1693501369828,0.84623281,217.39,216.78,0.20012033]
[1693501370024,0.07177758,217.36,216.81,0.20012033]
[1693501370223,0.07177758,217.37,216.79,0.20012033]
[1693501370428,0.84623281,217.35,216.82,0.20012033]
[1693501370631,0.84623281,217.35,216.49,0.99358659]
[1693501370632,0.84623281,217.36,216.8,0.20012033]
[1693501370827,0.84623281,217.35,216.81,0.20012033]
[1693501371027,0.84623281,217.4,216.78,0.20012033]
[1693501371229,0.84623281,217.42,216.77,0.20012033]
[1693501372024,0.84623281,217.42,216.77,0.27463932]
[1693501372225,0.84623281,217.43,216.77,0.27463932]
[1693501372426,0.84623281,217.43,216.81,0.07451899]
[1693501372628,0.84623281,217.47,216.82,0.27463932]
[1693501372929,0.84623281,217.48,216.83,0.20012033]
[1693501373127,0.84623281,217.47,216.83,0.27463932]
[1693501373328,0.84623281,217.47,216.84,0.20012033]
[1693501373527,0.84623281,217.46,216.81,0.20012033]
[1693501373725,0.84623281,217.46,216.7,0.14903798]
[1693501373726,0.84623281,217.48,216.78,0.20012033]
[1693501373926,0.84623281,217.48,216.77,0.20012033]
[1693501374328,0.91801039,217.48,216.77,0.27463932]
[1693501374730,0.8448168,217.47,216.78,0.20012033]
[1693501375229,0.8448168,217.47,216.78,0.27463932]
[1693501375430,0.8448168,217.48,216.82,0.07451899]
[1693501375631,0.07177758,217.56,216.82,0.07451899]
[1693501375826,0.84581528,217.47,216.83,0.20012033]
[1693501376023,0.07177758,217.52,216.83,0.20012033]
[1693501376224,0.07177758,217.5,216.79,0.27463932]
[1693501376428,0.07177758,217.49,216.79,0.20012033]
[1693501376627,0.84581528,217.48,216.8,0.20012033]
[1693501377032,0.84581528,217.48,216.78,0.20012033]
[1693501377330,0.91759286,217.5,216.78,0.20012033]
[1693501377532,0.84581528,217.47,216.78,0.20012033]
[1693501377832,0.84581528,217.46,216.78,0.27463932]
[1693501378226,0.84581528,217.5,216.82,0.07451899]
[1693501378430,0.84581528,217.5,216.83,0.27463932]
[1693501378631,0.84581528,217.55,216.84,0.20012033]
[1693501378829,0.07177758,217.56,216.84,0.20012033]
[1693501378830,0.84581528,217.54,216.84,0.20012033]
[1693501379131,0.84581528,217.53,216.84,0.20012033]
[1693501379429,0.84581528,217.58,216.82,0.20012033]
[1693501379634,0.84581528,217.57,216.85,0.20012033]
[1693501379834,0.84581528,217.58,216.86,0.20012033]
[1693501380026,0.84581528,217.58,216.82,0.20012033]
[1693501380334,0.84581528,217.58,216.82,0.27463932]
[1693501380631,0.84581528,217.59,216.83,0.20012033]
[1693501380832,0.84581528,217.58,216.83,0.20012033]
[1693501381031,0.84581528,217.59,216.83,0.20012033]
[1693501381224,0.07177758,217.58,216.83,0.20012033]
[1693501381429,0.07177758,217.54,216.82,0.20012033]
[1693501381626,0.07177758,217.53,216.84,0.20012033]
[1693501381825,0.91759286,217.53,216.83,0.20012033]
[1693501382030,0.84581528,217.52,216.84,0.20012033]
[1693501382231,0.84581528,217.52,216.76,0.20012033]
[1693501382432,0.91759286,217.52,216.76,0.20012033]
[1693501382634,0.84581528,217.51,216.75,0.20012033]
[1693501382929,0.84581528,217.51,216.51,0.99358659]
[1693501382930,0.84581528,217.51,216.76,0.27463932]
[1693501383233,0.84581528,217.5,216.77,0.27463932]
[1693501383434,0.84581528,217.54,216.78,0.20012033]
[1693501383636,0.91759286,217.54,216.78,0.20012033]
[1693501383836,0.84581528,217.53,216.77,0.20012033]
[1693501384037,0.07177758,217.52,216.78,0.07451899]
[1693501384436,0.84581528,217.51,216.79,0.20012033]
[1693501384736,0.84581528,217.51,216.82,0.07451899]
[1693501384935,0.84581528,217.51,216.79,0.20012033]
[1693501385135,0.07177758,217.52,216.7,0.14903798]
[1693501385136,0.07177758,217.52,216.8,0.20012033]
[1693501385335,0.84581528,217.51,216.77,0.20012033]
[1693501386038,0.07177758,217.5,216.77,0.20012033]
[1693501386332,0.84581528,217.49,216.78,0.20012033]
[1693501386537,0.91759286,217.49,216.78,0.20012033]
[1693501386831,0.91759286,217.48,216.76,0.20012033]
[1693501387040,0.91759286,217.47,216.75,0.27463932]
[1693501387231,0.07177758,217.43,216.76,0.20012033]
[1693501387435,0.07177758,217.42,216.76,0.20012033]
[1693501387632,0.07177758,217.42,216.71,0.20012033]
[1693501387836,0.84581528,217.41,216.72,0.20012033]
[1693501388037,0.91759286,217.41,216.7,0.20012033]
[1693501388237,0.07177758,217.4,216.73,0.20012033]
[1693501388441,0.84581528,217.4,216.74,0.20012033]
[1693501388738,0.91759286,217.4,216.75,0.20012033]
[1693501389037,0.84581528,217.39,216.69,0.20012033]
[1693501389237,0.84581528,217.39,216.62,0.14903798]
[1693501389238,0.84581528,217.39,216.7,0.20012033]
[1693501389437,0.84581528,217.39,216.63,0.20012033]
[1693501389732,0.84581528,221.53,214.23,0.20012033]
[1693501389936,0.84581528,221.52,214.24,0.20012033]
[1693501390136,0.84581528,223.58,214.23,0.20012033]
[1693501390836,0.84581528,223.58,216.69,0.07464688]
[1693501390837,0.07199969,217.39,216.69,0.07464688]
[1693501391033,0.07199969,217.37,216.67,0.07464688]
[1693501391238,0.84581528,217.36,216.68,0.20012033]
[1693501391437,0.91781497,217.36,216.68,0.20012033]
[1693501391634,0.84581528,217.35,216.68,0.20012033]
[1693501392039,0.91781497,217.35,216.68,0.27476721]
[1693501392235,0.91781497,217.34,216.69,0.20012033]
[1693501392439,0.91781497,217.33,216.69,0.20012033]
[1693501392742,0.07199969,217.31,216.67,0.20012033]
[1693501392936,0.07199969,217.3,216.7,0.20012033]
[1693501393139,0.07199969,217.3,216.71,0.20012033]
[1693501393340,0.84581528,217.29,216.64,0.20012033]
[1693501393542,0.84581528,217.3,216.64,0.20012033]
[1693501393843,0.84581528,217.29,216.64,0.20012033]
[1693501394036,0.84581528,217.3,216.67,0.07464688]
[1693501394242,0.84581528,217.29,216.68,0.20012033]
[1693501394444,0.84581528,217.29,216.67,0.20012033]
[1693501395145,0.84581528,217.3,216.67,0.20012033]
[1693501395448,0.84581528,217.29,216.67,0.20012033]
[1693501395649,0.84581528,217.31,216.67,0.20012033]
[1693501395849,0.84581528,217.3,216.67,0.20012033]
[1693501396043,0.84581528,217.31,216.7,0.07464688]
[1693501396350,0.84581528,217.3,216.73,0.07464688]
[1693501396550,0.84581528,217.33,216.74,0.20012033]
[1693501397252,0.84581528,217.33,216.74,0.27476721]
[1693501397444,0.84581528,217.33,216.75,0.20012033]
[1693501397646,0.91781497,217.33,216.75,0.20012033]
[1693501397843,0.91781497,217.33,216.74,0.20012033]
[1693501398049,0.91781497,217.32,216.73,0.27476721]
[1693501398245,0.07199969,217.28,216.74,0.20012033]
[1693501398445,0.84581528,217.27,216.7,0.20012033]
[1693501398751,0.84581528,217.27,216.73,0.07464688]
[1693501398947,0.07199969,217.34,216.74,0.07464688]
[1693501399251,0.8464359,217.33,216.75,0.20012033]
[1693501399455,0.8464359,217.33,216.74,0.20012033]
[1693501399952,0.91843559,217.33,216.74,0.20012033]
[1693501400151,0.8464359,217.33,216.74,0.20012033]
[1693501400352,0.8464359,217.32,216.74,0.20012033]
[1693501400648,0.8464359,217.33,216.75,0.20012033]
[1693501400851,0.8464359,217.32,216.73,0.27476721]
[1693501401052,0.8464359,217.33,216.74,0.20012033]
[1693501401250,0.8464359,217.31,216.74,0.20012033]
[1693501401451,0.8464359,217.32,216.74,0.20012033]
[1693501401652,0.8464359,217.33,216.74,0.20012033]
[1693501401847,0.8464359,217.32,216.73,0.20012033]
[1693501402554,0.8464359,217.33,216.73,0.20012033]
[1693501402854,0.8464359,217.32,216.72,0.20012033]
[1693501403052,0.8464359,217.32,216.73,0.20012033]
[1693501403347,0.8464359,217.32,216.74,0.20012033]
[1693501403552,0.8464359,217.32,216.72,0.20012033]
[1693501403752,0.8464359,217.32,216.73,0.20012033]
[1693501403956,0.8464359,217.33,216.73,0.20012033]
[1693501404452,0.8464359,217.34,216.73,0.20012033]
[1693501404655,0.8464359,217.32,216.73,0.20012033]
[1693501404854,0.8464359,217.31,216.73,0.20012033]
[1693501405251,0.8464359,217.3,216.73,0.20012033]
[1693501405446,0.8464359,217.34,216.73,0.27476721]
[1693501405650,0.07199969,217.35,216.73,0.27476721]
[1693501405651,0.8464359,217.29,216.73,0.27476721]
[1693501405852,0.07199969,217.35,216.74,0.20012033]
[1693501406049,0.84645758,217.34,216.74,0.20012033]
[1693501406253,0.84645758,217.34,216.71,0.07464688]
[1693501406254,0.84645758,217.34,216.72,0.20012033]
[1693501406654,0.91845727,217.34,216.72,0.20012033]
[1693501406855,0.84645758,217.33,216.72,0.20012033]
[1693501408356,0.91845727,217.33,216.72,0.20012033]
[1693501408558,0.07199969,217.43,216.8,0.07464688]
[1693501408859,0.07199969,217.37,216.81,0.20012033]
[1693501409060,0.846095,217.36,216.77,0.20012033]
[1693501409352,0.91809469,217.36,216.76,0.20012033]
[1693501409554,0.91809469,217.35,216.77,0.20012033]
[1693501409752,0.91809469,217.35,216.74,0.20012033]
[1693501409958,0.91809469,217.34,216.74,0.20012033]
[1693501410156,0.846095,217.33,216.73,0.20012033]
[1693501410755,0.846095,217.33,216.73,0.27476721]
[1693501411060,0.846095,217.33,216.74,0.20012033]
[1693501411453,0.07199969,217.36,216.75,0.07464688]
[1693501411662,0.07199969,217.4,216.8,0.07464688]
[1693501411857,0.07199969,217.42,216.82,0.07464688]
[1693501412161,0.84610643,217.41,216.83,0.20012033]
[1693501412560,0.07199969,217.43,216.83,0.20012033]
[1693501412561,0.84610643,217.42,216.83,0.20012033]
[1693501412854,0.84610643,217.41,216.83,0.27476721]
[1693501413061,0.84610643,217.41,216.84,0.20012033]
[1693501413262,0.84610643,217.42,216.84,0.20012033]
[1693501413462,0.84610643,217.41,216.83,0.20012033]
[1693501413663,0.84610643,217.42,216.84,0.20012033]
[1693501413863,0.84610643,217.42,216.84,0.27476721]
[1693501414063,0.07199969,217.42,216.86,0.07464688]
[1693501414363,0.84610643,217.41,216.87,0.20012033]
[1693501414759,0.84610643,217.41,216.86,0.20012033]
[1693501415063,0.07199969,217.46,216.89,0.07464688]
[1693501415264,0.84577635,217.45,216.91,0.07464688]
[1693501415763,0.84577635,217.44,216.92,0.20012033]
[1693501415965,0.84577635,217.47,216.92,0.20012033]
[1693501416158,0.91777604,217.48,216.92,0.20012033]
[1693501416358,0.84577635,217.47,216.92,0.27476721]
[1693501416564,0.84577635,217.47,216.93,0.20012033]
[1693501416766,0.84577635,217.48,216.93,0.20012033]
[1693501417059,0.84577635,217.47,216.91,0.20012033]
[1693501417266,0.84577635,217.48,216.92,0.20012033]
[1693501417565,0.84577635,217.47,216.93,0.20012033]
[1693501417765,0.84577635,217.49,216.93,0.20012033]
[1693501418060,0.07199969,217.45,216.94,0.20012033]
[1693501418265,0.84577635,217.44,216.85,0.20012033]
[1693501418459,0.84577635,217.44,216.86,0.20012033]
[1693501418662,0.91777604,217.44,216.85,0.20012033]
[1693501418962,0.84577635,217.43,216.86,0.20012033]
[1693501419161,0.84577635,217.43,216.84,0.07464688]
[1693501419162,0.84577635,217.43,216.85,0.20012033]
[1693501419359,0.84577635,217.44,216.85,0.20012033]
[1693501419562,0.84577635,217.43,216.85,0.20012033]
[1693501419864,0.84577635,217.42,216.86,0.07464688]
[1693501420076,0.84577635,217.42,216.87,0.20012033]
[1693501420266,0.07199969,217.49,216.91,0.07464688]
[1693501420465,0.84575112,217.48,216.92,0.20012033]
[1693501421166,0.84575112,217.5,216.91,0.20012033]
[1693501421360,0.84575112,217.49,216.92,0.20012033]
[1693501421565,0.84575112,217.51,216.91,0.20012033]
[1693501421767,0.84575112,217.5,216.92,0.20012033]
[1693501421960,0.84575112,217.51,216.91,0.20012033]
[1693501422365,0.91775081,217.51,216.91,0.20012033]
[1693501422561,0.91775081,217.51,216.9,0.20012033]
[1693501422765,0.84575112,217.5,216.9,0.20012033]
[1693501422960,0.84575112,217.51,216.89,0.20012033]
[1693501423366,0.91775081,217.51,216.89,0.20012033]
[1693501423562,0.84575112,217.5,216.88,0.20012033]
[1693501423865,0.84575112,217.5,216.89,0.20012033]
[1693501424167,0.84575112,217.49,216.9,0.20012033]
[1693501424361,0.84575112,217.52,216.88,0.20012033]
[1693501424564,0.84575112,217.48,216.91,0.20012033]
[1693501424766,0.84575112,217.51,216.89,0.20012033]
[1693501424965,0.07199969,217.49,216.9,0.20012033]
[1693501425269,0.84575112,217.48,216.83,0.20012033]
[1693501425471,0.84575112,217.49,216.84,0.20012033]
[1693501427274,0.84575112,217.49,216.87,0.07464688]
[1693501427473,0.84575112,217.53,216.88,0.27476721]
[1693501427674,0.84575112,217.52,216.88,0.27476721]
[1693501427874,0.84575112,217.53,216.89,0.20012033]
[1693501428171,0.84575112,217.52,216.89,0.27476721]
[1693501428477,0.84575112,217.51,216.9,0.20012033]
[1693501428777,0.84575112,217.5,216.9,0.20012033]
[1693501428972,0.47999795,217.6,216.89,0.20012033]
[1693501428973,0.84575112,217.54,216.89,0.20012033]
[1693501429173,0.91775081,217.55,216.89,0.27476721]
[1693501429373,0.84575112,217.53,216.89,0.27476721]
[1693501429675,0.84575112,217.52,216.9,0.20012033]
[1693501429975,0.07199969,217.55,216.9,0.27476721]
[1693501429976,0.84575112,217.51,216.9,0.27476721]
[1693501430175,0.84575112,217.54,216.91,0.20012033]
[1693501430369,0.91775081,217.54,216.91,0.20012033]
[1693501430574,0.84575112,217.53,216.9,0.20012033]
[1693501430973,0.84575112,217.54,216.9,0.20012033]
[1693501431275,0.91775081,217.54,216.9,0.20012033]
[1693501431577,0.84575112,217.53,216.9,0.20012033]
[1693501432169,0.07199969,217.55,216.9,0.20012033]
[1693501432170,0.84575112,217.54,216.9,0.20012033]
[1693501432373,0.84575112,217.52,216.9,0.20012033]
[1693501432673,0.84575112,217.51,216.9,0.20012033]
[1693501432869,0.84575112,217.5,216.91,0.20012033]
[1693501433070,0.84575112,217.53,216.89,0.20012033]
[1693501433376,0.84575112,217.52,216.9,0.20012033]
[1693501433574,0.84575112,217.52,216.88,0.20012033]
[1693501433772,0.07199969,217.51,216.89,0.20012033]
[1693501433972,0.84575112,217.5,216.89,0.20012033]
[1693501434473,0.07199969,217.47,216.89,0.20012033]
[1693501434675,0.84575112,217.46,216.85,0.20012033]
[1693501434876,0.91775081,217.46,216.85,0.20012033]
[1693501435073,0.84575112,217.45,216.85,0.20012033]
[1693501435775,0.84575112,217.45,216.85,0.27476721]
[1693501436174,0.84575112,217.45,216.86,0.20012033]
[1693501436675,0.91775081,217.45,216.86,0.27476721]
[1693501436876,0.84575112,217.44,216.87,0.20012033]
[1693501437274,0.91775081,217.45,216.87,0.20012033]
[1693501437475,0.84575112,217.44,216.86,0.27476721]
[1693501437667,0.91775081,217.44,216.87,0.27476721]
[1693501437872,0.84575112,217.43,216.88,0.20012033]
[1693501438273,0.84575112,217.43,216.92,0.07464688]
[1693501438476,0.07199969,217.5,216.93,0.27476721]
[1693501438672,0.84569316,217.49,216.93,0.27476721]
[1693501438975,0.84569316,217.49,216.94,0.20012033]
[1693501439774,0.91769285,217.49,216.94,0.27476721]
[1693501439974,0.84569316,217.48,216.95,0.20012033]
[1693501440573,0.91769285,217.48,216.95,0.20012033]
[1693501440771,0.84569316,217.47,216.95,0.20012033]
[1693501441077,0.84569316,217.47,216.94,0.20012033]
[1693501441271,0.84569316,217.47,216.95,0.20012033]
[1693501441476,0.84569316,217.47,216.94,0.27476721]
[1693501441676,0.84569316,217.48,216.95,0.20012033]
[1693501441876,0.84569316,217.48,216.96,0.07464688]
[1693501441877,0.07199969,217.46,216.96,0.07464688]
[1693501442078,0.84569316,217.45,216.97,0.20012033]
[1693501442279,0.91769285,217.45,216.97,0.20012033]
[1693501442473,0.07199969,217.44,216.97,0.20012033]
[1693501442675,0.91769285,217.44,216.98,0.20012033]
[1693501442871,0.07199969,217.44,216.99,0.20012033]
[1693501443078,2.39998977,217.58,216.96,0.27476721]
[1693501443079,0.07199969,217.45,216.96,0.27476721]
[1693501443280,0.07199969,217.45,216.97,0.20012033]
[1693501444273,0.07199969,217.41,216.97,0.20012033]
[1693501444580,0.07199969,217.41,216.7,0.99529184]
[1693501444581,0.91795897,217.4,216.98,0.20012033]
[1693501444781,0.07199969,217.4,216.93,0.20012033]
[1693501444981,0.07199969,217.4,216.91,0.07464688]
[1693501444982,0.07199969,217.4,216.92,0.20012033]
[1693501445282,0.91799386,217.39,216.93,0.20012033]
[1693501445481,0.07199969,217.39,216.91,0.20012033]
[1693501445875,0.07199969,217.34,216.94,0.07464688]
[1693501446276,0.07199969,217.35,216.95,0.20012033]
[1693501447377,0.07199969,217.35,216.95,0.27476721]
[1693501447581,0.07199969,217.34,216.96,0.20012033]
[1693501447779,0.07199969,217.34,216.95,0.20012033]
[1693501448481,0.07199969,217.35,216.95,0.20012033]
[1693501449178,0.07199969,217.35,216.95,0.27476721]
[1693501449383,0.07199969,217.35,216.96,0.20012033]
[1693501449586,0.07199969,217.37,216.96,0.27476721]
[1693501449882,0.07199969,217.36,216.97,0.27476721]
[1693501450082,0.07199969,217.36,216.98,0.20012033]
[1693501450579,0.07199969,217.36,217.01,0.07464688]
[1693501450786,0.14399938,217.43,217.02,0.20012033]
[1693501450787,0.07199969,217.41,217.02,0.20012033]
[1693501451282,0.07199969,217.4,217.02,0.20012033]
[1693501451985,0.07199969,217.41,217.02,0.20012033]
[1693501452182,0.07199969,217.41,217.02,0.27476721]
[1693501452381,0.07199969,217.41,217.03,0.20012033]
[1693501452878,0.07199969,217.42,217.03,0.27476721]
[1693501453186,0.07199969,217.42,217.04,0.20012033]
[1693501453688,0.07199969,217.43,217.04,0.20012033]
[1693501453984,0.07199969,217.42,217.04,0.27476721]
[1693501454185,0.07199969,217.43,217.04,0.27476721]
[1693501454378,0.07199969,217.43,217.05,0.20012033]
[1693501456087,0.07199969,217.43,217.04,0.20012033]
[1693501456983,0.07199969,217.48,217.08,0.07464688]
[1693501457186,0.07199969,217.48,217.09,0.20012033]
[1693501457888,0.07199969,217.45,217.09,0.20012033]
[1693501458082,0.07199969,217.44,217.03,0.20012033]
[1693501458281,0.07199969,217.44,217.04,0.20012033]
[1693501458685,0.07199969,217.44,217.05,0.20012033]
[1693501458888,0.07199969,217.44,217.02,0.20012033]
[1693501459087,0.07199969,217.44,217.03,0.20012033]
[1693501459281,0.07199969,217.44,217.02,0.20012033]
[1693501459487,0.07199969,217.44,217.03,0.20012033]
[1693501459688,0.07199969,217.44,217.02,0.20012033]
[1693501459987,0.95999591,217.51,217.03,0.20012033]
[1693501459988,0.07199969,217.43,217.03,0.20012033]
[1693501460185,0.07199969,217.43,217.01,0.20012033]
[1693501460386,0.07199969,217.43,217.02,0.20012033]
[1693501460781,0.07199969,217.43,217.01,0.20012033]
[1693501460986,0.84589739,217.42,217.03,0.20012033]
[1693501461183,0.07199969,217.39,217.04,0.20012033]
[1693501461384,0.07199969,217.38,217.04,0.20012033]
[1693501461690,0.07199969,217.38,217.05,0.20012033]
[1693501461891,0.07199969,217.38,216.96,0.20012033]
[1693501462091,0.07199969,217.39,216.97,0.20012033]
[1693501462390,0.07199969,217.44,217.01,0.07464688]
[1693501462584,0.07199969,217.45,217.02,0.07464688]
[1693501463089,0.07199969,217.45,217.03,0.20012033]
[1693501463493,0.07199969,217.46,217.04,0.07464688]
[1693501463687,0.07199969,217.53,217.07,0.07464688]
[1693501463889,0.07199969,217.53,217.08,0.20012033]
[1693501464288,0.07199969,217.49,217.07,0.20012033]
[1693501464591,0.07199969,217.48,217.08,0.20012033]
[1693501464791,0.07199969,217.48,217.02,0.20012033]
[1693501464990,0.07199969,217.48,217.03,0.20012033]
[1693501465183,0.47999795,217.52,216.94,0.14929377]
[1693501465184,0.07199969,217.47,217.04,0.20012033]
[1693501465389,0.07199969,217.47,217.05,0.20012033]
[1693501465586,0.07199969,217.47,217.01,0.20012033]
[1693501465791,0.07199969,217.48,217.02,0.20012033]
[1693501465987,0.07199969,217.48,217.02,0.27476721]
[1693501466191,0.07199969,217.48,217.03,0.20012033]
[1693501466388,0.07199969,217.48,217.04,0.20012033]
[1693501466597,0.07199969,217.48,217.05,0.20012033]
[1693501466793,0.07199969,217.48,217.02,0.20012033]
[1693501467695,0.07199969,217.47,217.02,0.20012033]
[1693501467999,0.07199969,217.48,217.02,0.20012033]
[1693501468298,0.07199969,217.48,217.03,0.20012033]
[1693501468496,0.07199969,217.48,216.94,0.14929377]
[1693501468497,0.07199969,217.48,217.02,0.20012033]
[1693501468796,0.07199969,217.48,217.03,0.20012033]
[1693501469098,0.07199969,217.48,217.04,0.20012033]
[1693501469292,0.47999795,217.53,217.01,0.27476721]
[1693501469293,0.07199969,217.49,217.01,0.27476721]
[1693501469498,0.07199969,217.49,217.05,0.20012033]
[1693501469695,0.07199969,217.49,217.06,0.20012033]
[1693501469900,0.07199969,217.49,217.07,0.20012033]
[1693501470100,0.07199969,217.49,217.03,0.20012033]
[1693501470300,0.07199969,217.49,217.04,0.20012033]
[1693501470495,0.07199969,217.49,217.03,0.20012033]
[1693501470695,0.07199969,217.49,217.04,0.20012033]
[1693501470892,0.07199969,217.49,217.02,0.07464688]
[1693501470893,0.07199969,217.49,217.05,0.20012033]
[1693501471196,0.07199969,217.49,217.06,0.20012033]
[1693501471398,0.07199969,217.49,217.03,0.20012033]
[1693501471597,0.07199969,217.49,217.04,0.20012033]
[1693501471898,0.07199969,217.49,217.05,0.20012033]
[1693501472200,0.07199969,217.49,217.06,0.20012033]
[1693501472397,0.07199969,217.49,217.07,0.20012033]
[1693501472593,0.07199969,217.49,217.04,0.20012033]
[1693501472793,0.07199969,217.49,217.05,0.20012033]
[1693501472999,0.07199969,217.49,217.04,0.20012033]
[1693501473200,0.07199969,217.49,217.05,0.20012033]
[1693501473397,0.07199969,217.49,217.04,0.20012033]
[1693501473592,0.07199969,217.49,217.03,0.07464688]
[1693501473593,0.07199969,217.49,217.05,0.20012033]
[1693501473801,0.07199969,217.49,217.06,0.20012033]
[1693501474002,0.07199969,217.49,217.07,0.20012033]
[1693501474494,0.07199969,217.49,217.03,0.20012033]
[1693501474897,0.07199969,217.49,217.04,0.20012033]
[1693501475101,0.07199969,217.5,217.04,0.20012033]
[1693501475300,0.07199969,217.54,217.07,0.07464688]
[1693501475504,0.07199969,217.54,217.08,0.20012033]
[1693501475704,0.07199969,217.56,217.08,0.27476721]
[1693501476003,0.07199969,217.56,217.09,0.20012033]
[1693501477006,0.07199969,217.57,217.09,0.27476721]
[1693501477202,0.07199969,217.57,217.1,0.20012033]
[1693501477399,0.07199969,217.58,217.1,0.20012033]
[1693501477602,0.07199969,217.59,217.1,0.20012033]
[1693501477904,0.07199969,217.59,217.08,0.07464688]
[1693501477905,0.84528363,217.58,217.11,0.20012033]
[1693501478106,0.07199969,217.55,217.09,0.20012033]
[1693501478302,0.91728332,217.54,217.1,0.20012033]
[1693501478509,0.07199969,217.52,217.03,0.20012033]
[1693501478708,0.84528363,217.51,217.02,0.20012033]
[1693501478909,0.84528363,217.51,217.03,0.20012033]
[1693501479204,0.84528363,217.51,217.04,0.20012033]
[1693501479406,0.91728332,217.52,217.02,0.20012033]
[1693501479606,0.84528363,217.51,217.02,0.20012033]
[1693501480509,0.84528363,217.51,217.02,0.27476721]
[1693501480709,0.84528363,217.52,217.03,0.20012033]
[1693501480909,0.07199969,217.52,217.03,0.27476721]
[1693501481106,0.07199969,217.52,217.04,0.20012033]
[1693501481511,0.91751034,217.51,217.04,0.20012033]
[1693501481807,0.07199969,217.52,217.04,0.27476721]
[1693501482109,0.07199969,217.52,217.05,0.20012033]
[1693501482413,0.07199969,217.52,217.06,0.20012033]
[1693501482605,0.07199969,217.52,217.04,0.20012033]
[1693501482805,0.07199969,217.52,217.03,0.07464688]
[1693501482806,0.07199969,217.5,217.05,0.27476721]